Cogmind - Beta 12 @@@ ROGUE MODE // 2023.09.07 @ 23:19:09 Player: haldagan Result: Destroyed by D-53 Grenadier with Mini Grenade Launcher Performance ------------- Evolutions (0) 0 Regions Visited (2) 400 Robots Destroyed (20) 100 Value Destroyed (442) 442 Prototype IDs (2) 40 Alien Tech Used (0) 0 Bonus (0) 0 TOTAL SCORE: 982 Bonus ------- None Cogmind --------- Core Integrity 0/250 Matter 193/300 Energy 250/250 System Corruption 0% Temperature Hot (210) Movement Walking (195) Ox1 Location -10/Mines Parts ------- > --- POWER (1) -------- Ion Engine > --- PROPULSION (2) --- Aluminum Leg Titanium Leg > --- UTILITY (2) ------ Large Storage Unit Signal Interpreter > --- WEAPON (2) ------- Field Laser Light Assault Rifle > --- INVENTORY (15) --- Light Ion Engine Aluminum Leg Aluminum Leg Aluminum Leg Aluminum Leg Aluminum Leg Medium Storage Unit Large Storage Unit High-capacity Matter Pod (0) Weapon Shielding EM Pulse Cannon Shock Bomb Launcher Mining Laser Hammer Hammer Peak State ------------ > --- POWER ------------ Ion Engine > --- PROPULSION ------- Aluminum Leg Titanium Leg > --- UTILITY ---------- Large Storage Unit Signal Interpreter > --- WEAPON ----------- Field Laser Light Assault Rifle > --- INVENTORY -------- Light Ion Engine Aluminum Leg Aluminum Leg Aluminum Leg Aluminum Leg Aluminum Leg Medium Storage Unit Large Storage Unit High-capacity Matter Pod Weapon Shielding Shock Bomb Launcher Mining Laser Hammer Hammer [Rating: 12] Favorites ----------- Power Ion Engine Engine Ion Engine Propulsion Light Treads Treads Light Treads Leg Aluminum Leg Wheel Compact Wheel Utility Signal Interpreter Device Improved Heat Sink Storage Small Storage Unit Processor Signal Interpreter Weapon Light Assault Rifle Energy Gun Medium Laser Ballistic Gun Light Assault Rifle Launcher Grenade Launcher Build | -11 -10 -10 ------- Run | Jun Mat Min Slots Evolved . | . . . Power . | . . . Propulsion . | . . . Utility . | . . . Weapon . | . . . Parts Attached 28 | 5 16 7 Power 4 | . 4 . Engine 4 | . 4 . Core . | . . . Reactor . | . . . Propulsion 11 | 2 6 3 Treads 4 | . 3 1 Leg 5 | . 3 2 Wheel 2 | 2 . . Hover . | . . . Flight . | . . . Utility 4 | 1 3 . Device 1 | . 1 . Storage 2 | 1 1 . Processor 1 | . 1 . Hackware . | . . . Protection . | . . . Artifact . | . . . Weapon 9 | 2 3 4 Energy Gun 4 | 2 1 1 Energy Cannon . | . . . Ballistic Gun 4 | . 2 2 Ballistic Cannon . | . . . Launcher 1 | . . 1 Special Weapon . | . . . Impact Weapon . | . . . Slashing Weapon . | . . . Piercing Weapon . | . . . Special Melee Weapon . | . . . Unidentified Prototypes . | . . . Parts Lost 2 | . 2 . Power 1 | . 1 . Propulsion . | . . . Utility . | . . . Weapon 1 | . 1 . Highest Loss Streak 1 | . 1 . To Critical Strikes . | . . . Average Slot Usage (%) 97 | . 96 100 Engine 12 | . 12 14 Treads 18 | . 20 9 Leg 7 | . 5 18 Wheel 1 | . 2 . Device 4 | . 5 . Storage 14 | . 14 14 Processor 8 | . 7 14 Energy Gun 7 | . 7 8 Ballistic Gun 20 | . 20 19 Naked Turns . | . . . Heaviest Build 29 | 9 27 29 Greatest Support 42 | 32 40 42 Greatest Overweight (x) 2 | 2 . 1 Average Overweight (x) . | . . . Largest Inventory Capacity 15 | 8 15 15 Average Capacity 11 | 7 10 15 Most Carried 15 | 8 15 15 Average Carried 10 | 6 9 14 Final Capacity 15 | 8 15 15 Final Carried 15 | 7 15 15 Class Distribution -------------------- 87% | Mutant 12% | Scavenger-Mutant Dominant Class ---------------- Mutant | -10/Materials Mutant | -10/Mines Resources | -11 -10 -10 ----------- Run | Jun Mat Min Matter Collected 429 | 229 152 48 Remotely . | . . . Salvage Created 582 | . 563 19 Parts 43 | . 40 3 Haulers Intercepted . | . . . Recyclers Shooed 2 | . 1 1 Parts Field Recycled . | . . . Retrieved Matter . | . . . Parts Self-Destructed . | . . . Prevented . | . . . Kills | -11 -10 -10 ------- Run | Jun Mat Min Combat Hostiles Destroyed 15 | . 12 3 Guns 13 | . 12 1 AOE 2 | . . 2 Classes Destroyed 5 | . 5 . Worker 2 | . 2 . Recycler 1 | . 1 . Watcher 2 | . 2 . Swarmer 6 | . 3 3 Grunt 9 | . 9 . Best Kill Streak 4 | . 4 3 Combat Bots Only 3 | . 3 3 Max Kills in Single Turn 3 | . 2 3 Gunslinging 1 | . 1 . Exploded 2 | . . 2 Melee . | . . . Uniques/NPCs Destroyed . | . . . Combat | -11 -10 -10 -------- Run | Jun Mat Min Damage Taken 925 | . 692 233 Core 256 | . 152 104 Absorbed by Shields . | . . . Regen/Repaired (Parts) 64 | . 64 . Core Remaining (%) 100 | 100 . . Volleys Fired 73 | . 67 6 Largest 2 | . 2 2 Hottest 90 | . 90 83 Shots Fired 144 | . 132 12 Gun 143 | . 132 11 Cannon . | . . . Launcher 1 | . . 1 Special . | . . . Kinetic 54 | . 48 6 Thermal 77 | . 72 5 Explosive 1 | . . 1 Electromagnetic 12 | . 12 . Robot Hit Streak 16 | . 16 1 Robot Miss Streak 6 | . 4 6 Penetration Max . | . . . Secondary Targets 3 | . 3 . Max Gunslinging Chain 1 | . 1 . Shots Hit Robots 91 | . 88 3 Core Hits 35 | . 30 5 Critical Kills 1 | . 1 . Critical Parts Destroyed 1 | . 1 . Critical Strikes 4 | . 3 1 Burn 2 | . 1 1 Destroy 2 | . 2 . Melee Attacks . | . . . Impact . | . . . Slashing . | . . . Piercing . | . . . Sneak Attacks . | . . . Combat Hostiles . | . . . Follow-up Attacks . | . . . Damage Inflicted 986 | . 866 120 Guns 901 | . 866 35 Cannons . | . . . Explosions 84 | . . 84 Melee . | . . . Ramming 1 | . . 1 Kinetic 260 | . 243 17 Thermal 556 | . 538 18 Explosive 84 | . . 84 Electromagnetic 85 | . 85 . Impact . | . . . Slashing . | . . . Piercing . | . . . Highest Corruption . | . . . Average Corruption . | . . . Corruption Purged . | . . . Corruption Blocked . | . . . Overload Shots . | . . . Overflow Damage . | . . . Projectiles . | . . . Explosions . | . . . Melee . | . . . Knockbacks . | . . . Impact . | . . . Kinetic . | . . . Secondary . | . . . Self-Inflicted Damage . | . . . Shots . | . . . Rammed . | . . . Targets Rammed 1 | . . 1 Kicked 1 | . . 1 Crushed . | . . . Highest Temperature 210 | . 87 210 Average Temperature 34 | . 16 97 Received Heat Transfer 390 | . 330 60 Siege Activations . | . . . Robots Corrupted . | . . . Combat Hostiles . | . . . Parts Fried . | . . . Impact Corruptions . | . . . Robots Melted . | . . . Combat Hostiles . | . . . Parts Melted 3 | . 3 . Heat Transferred 1659 | . 1548 111 Parts Sabotaged . | . . . Parts Stolen . | . . . Parts Stripped . | . . . Power Chain Reactions . | . . . Missiles Intercepted . | . . . Alert | -11 -10 -10 ------- Run | Jun Mat Min Peak Influence 265 | . 265 137 Initial 30 | . . 30 Average 109 | . 110 134 Maximum Alert Level 1 | . 1 . Low Security (%) 89 | 100 86 100 Level 1 10 | . 13 . Level 2 . | . . . Level 3 . | . . . Level 4 . | . . . Level 5 . | . . . High Security . | . . . Max Security . | . . . Squads Dispatched 3 | . 3 . Investigation 1 | . 1 . Extermination . | . . . Reinforcement 2 | . 2 . Assault . | . . . Garrison . | . . . Intercept . | . . . Searches Triggered . | . . . Construction Impeded . | . . . Haulers Reinforced . | . . . Active Scanning Responses . | . . . Cargo Convoy Interrupts . | . . . Stealth | -11 -10 -10 --------- Run | Jun Mat Min Distress Signals 1 | . 1 . Communications Jammed . | . . . Distress Signals . | . . . Times Spotted 31 | . 19 12 Peak Tracking Total 6 | . 4 6 Tactical Retreats 2 | . 1 1 Traps | -11 -10 -10 ------- Run | Jun Mat Min Traps Triggered 4 | . 2 2 Indirectly . | . . . Trap Hack Attempts . | . . . Triggered . | . . . Disarmed . | . . . Reprogrammed . | . . . Reused . | . . . Traps Extracted . | . . . Installed . | . . . Triggered . | . . . Machines | -11 -10 -10 ---------- Run | Jun Mat Min Machines Disabled 1 | . . 1 Max in Single Turn 1 | . . 1 Machines Repaired . | . . . Machines Sabotaged . | . . . Overloaded Fab Kills . | . . . Hacking | -11 -10 -10 --------- Run | Jun Mat Min Machines Accessed 8 | . 7 1 Terminals 5 | . 5 . Fabricators . | . . . Repair Stations 1 | . 1 . Recycling Units 1 | . 1 . Scanalyzers . | . . . Garrison Access . | . . . Total Hacks 14 | . 13 1 Successful 10 | . 9 1 Failed 4 | . 4 . Catastrophic . | . . . Database Lockouts . | . . . Manual . | . . . Terminals 10 | . 10 . Fabricators . | . . . Repair Stations 2 | . 2 . Recycling Units 1 | . 1 . Scanalyzers . | . . . Garrison Access . | . . . Terminal Hacks 7 | . 6 1 Record 3 | . 3 . Prototype ID Bank 1 | . 1 . Open Door 1 | . . 1 Locate Traps 1 | . 1 . Dispatch Records 1 | . 1 . Fabricator Hacks . | . . . Repair Station Hacks 2 | . 2 . Scan Component 1 | . 1 . Repair 1 | . 1 . Recycling Unit Hacks 1 | . 1 . Report Inventory 1 | . 1 . Scanalyzer . | . . . Garrison Access Hacks . | . . . Unauthorized Hacks . | . . . Terminals . | . . . Fabricators . | . . . Repair Stations . | . . . Recycling Units . | . . . Scanalyzers . | . . . Garrison Access . | . . . Data Cores Recovered . | . . . Used . | . . . Hacking Detections 4 | . 4 . Full Trace Events . | . . . Feedback Events . | . . . Feedback Blocked . | . . . Robot Schematics Acquired . | . . . Robots Built . | . . . Authchips . | . . . Time . | . . . Total Robot Build Rating . | . . . Part Schematics Acquired . | . . . Parts Built . | . . . Authchips . | . . . Time . | . . . Total Part Build Rating . | . . . Parts Repaired 1 | . 1 . Time 26 | . 26 . Parts Recycled . | . . . Recycled Matter . | . . . Retrieved Matter . | . . . Retrieved Components . | . . . Parts Scanalyzed . | . . . Part Schematics Acquired . | . . . Parts Damaged . | . . . Bothacking | -11 -10 -10 ------------ Run | Jun Mat Min Used RIF Installer . | . . . Robots Hacked . | . . . Non-combat . | . . . Combat . | . . . Robot Hacks Applied . | . . . Relay Couplers Released . | . . . Fabnet Peak Effective % . | . . . Robots Rewired . | . . . Allies Hacked . | . . . Hacks Repelled . | . . . Allies | -11 -10 -10 -------- Run | Jun Mat Min Total Allies 2 | . . 2 Largest Group 2 | . . 2 Highest-Rated Group 45 | . . 45 Highest-Rated Ally 31 | . . 31 Total Orders . | . . . Ally Attacks 3 | . . 3 Total Damage 22 | . . 22 Kills . | . . . Allies Corrupted . | . . . Allies Melted . | . . . Intel | -11 -10 -10 ------- Run | Jun Mat Min Robot Analysis Total . | . . . Derelict Logs Recovered 1 | . . 1 Drone Launches . | . . . Drone Recoveries . | . . . Exploration | -11 -10 -10 ------------- Run | Jun Mat Min Turns Passed 1483 | 61 1181 241 Spaces Moved 738 | 42 588 108 Core 21 | 21 . . Treads 494 | . 451 43 Legs 134 | . 69 65 Wheels 89 | 21 68 . Hover . | . . . Flight . | . . . Fastest Speed 50 | 50 100 125 Average Speed 150 | 97 148 180 Slowest Speed 195 | 150 160 195 Overloaded Moves . | . . . Propulsion Burnouts . | . . . Robots Hopped . | . . . Cave-ins Triggered . | . . . Exploration Rate (%) 39 | 4 88 26 Regions Visited 2 Branch Regions 1 Pre-discovered Areas . | . . . Known Exits Taken 1 | . 1 . Unknown Exits Taken 1 | 1 . . Scrap Searched 1 | . . 1 Spaces Dug . | . . . Terrain Destroyed 7 | . . 7 Melee . | . . . Projectile . | . . . AOE 7 | . . 7 Terrain Rammed . | . . . Walls Destroyed . | . . . Machines Disabled . | . . . Actions | -11 -10 -10 --------- Run | Jun Mat Min Total 983 | 61 777 145 Wait 77 | 3 66 8 Move 736 | 41 587 108 Hop . | . . . Pick Up 47 | 12 27 8 Fast Attach . | . . . Attach 17 | 5 8 4 Detach . | . . . Swap 11 | . 8 3 Drop 21 | . 14 7 Fire 73 | . 67 6 Melee . | . . . Ram . | . . . Kick 1 | . . 1 Crush . | . . . Escape Stasis . | . . . Rewire . | . . . Trap . | . . . Miscellaneous . | . . . Route ------- -11/Junkyard -10/Materials (discovered 4 exits: *Mat x3 / *Min) -10/Mines (discovered 1 exit: *Mat) History --------- Turn | Location | Event 2 | -11/Junkyard | Met Revision 17 12 | -11/Junkyard | Discovered new exit (range 15) 62 | -11/Junkyard | Entered Materials 306 | -10/Materials | Build established: Mutant 317 | -10/Materials | Discovered new exit (range 15) 546 | -10/Materials | Core integrity fell below 50% 686 | -10/Materials | Identified exit to Materials 976 | -10/Materials | Discovered exit to Materials (range 13) 1034 | -10/Materials | Repaired Lgt. Treads 1127 | -10/Materials | Discovered exit to Materials (range 15) 1181 | -10/Materials | Discovered new exit (range 11) 1195 | -10/Materials | Identified exit to Mines 1243 | -10/Materials | Entered Mines 1295 | -10/Mines | Discovered exit to Materials (range 6) 1312 | -10/Mines | Met a Derelict who couldn't figure out how to use a Trap Extractor 1444 | -10/Mines | Learned Materials interactive machine intel 1445 | -10/Mines | Assembled infested the area 1450 | -10/Mines | Assisted by a Guerilla fighting off Assembled 1482 | -10/Mines | Core integrity fell below 20% 1484 | -10/Mines | Destroyed by D-53 Grenadier with Mini Grenade Launcher Last Messages --------------- 01445_ ALERT: Infestation in the mines, dispatching Demolisher response squad. 01450_ A derelict emerges from the shadows: "You need to get out of here! I've been tracking a group of Assembled to figure out where they're coming from, and they're closing on this area, come on!" 01460_ as-24136 sneak attacks. 01460_ I2-E4V(h) knocked back. 01461_ HV Slug penetrates Wall. 01465_ HV Slug penetrates as-24136. 01465_ as-24136 suffers critical hit (Destroy). 01465_ as-24136 knocked back. 01466_ as-94472 sneak attacks. 01466_ I2-E4V(h) destroyed. 01469_ 5G-ITL(z) destroyed. 01473_ 34-AWG(g) destroyed. 01482_ as-23778 suffers critical hit (Burn). 01483_ as-23778 destroyed. 01483_ as-09733 destroyed. Map ----- +----------------------------------------------------+ | ?????????????????????????????????????????????????? | | ?????????????????????????????????????????????????? | | ?????????????????????????????????????????????????? | | ?????????????????????????????????????????????????? | | ?????????????????????????????????????????????????? | | ?????????????????????????????????????????????????? | | ?????????????????????????????????????????????????? | | ?????????????????????????????????????????????????? | | #############????????????????????????????????????? | | #????????????????????????????????????? | | #????????????????????????????????????? | | # ######## #????????????????????????????????????? | | # #??????# #????????????????????????????????????? | | # #??????# #????????????????????????????????????? | | # #??????# #????????????????????????????????????? | | # #??????# #?###????????????????????????????????? | | # #??????# #?# ????????????????????????????????? | | # #??????# #?# #?????????##?????????????????????? | | # #?????## #?# #??????### #####?????????????????? | | #??#### #?# #??????# #?????????????????? | | ###?## ### ######## #?????????????????? | | ????# dd ##?????????????????? | | ???# ####### ### ##????????????????? | | ???# ##?????# #?# #????????????????? | | ???## ##??????# #?# = ## #??????????????? | | ????## ????????# #??#@%!%]a*%%#??????????????? | | ?????## ????????# ?# #;###??????????????? | | ??????## ????????# #####a#####??????????????????? | | ???????# ????????##???? ??????????????????????? | | ??????? ?????????????# ??????????????????????? | | ??????? ?????????????# ""??????????????????????? | | ?????? ??????????????? ""??????????????????????? | | ?????? ??????????????# """?????????????????????? | | ????? ??????????????# ?????????????????????? | | ?????? ??????????????# ""??????????????????????? | | ?????? ???????????????# ????????????????????????? | | ???????????????????????# ????????????????????????? | | ???????????????????????? ????????????????????????? | | ?????????????????????????????????????????????????? | | ?????????????????????????????????????????????????? | | | | | | | | | | | | | | | | | | | | | +----------------------------------------------------+ Best States ------------- Heat Dissipation 39 Energy Generation 10 Energy Capacity 250 Matter Stores 300 Matter Capacity 300 Sight Range 16 Terrain Scan Density 10 Evasion (%) 55 Recoil Reduction 2 Item Schematics ----------------- None Robot Schematics ------------------ None Fabricated ------------ Nothing Alien Tech Used ----------------- None Achievements -------------- None Challenges ------------ None Game ------ Seed IntegritySegregatorBiocell Manual? 0 Play Time 00:18:56 Cumulative 18.6 hours Start 2023.09.06 @ 12:05:38 End 2023.09.07 @ 23:19:09 Sessions 5 Manual Loads 0 Difficulty Rogue Special Mode None Game No. 22 Rogue 22 Adventurer 0 Explorer 0 Win Type - Total 0 Types 0/0/0/0/0/0/0/0/0 Lore% 19 Gallery% 21 Achievement% 19 Wizard Run 0 Options --------- ASCII 0 Keyboard 0 Movement Numpad Keybinds 0 Fullscreen 1 Font 16/SmallcapsGlow Map View 50x54 Tactical HUD 1 Map Filters NONE Filters NONE Steam 1 RUN: 733d54be-7860-4291-913e-0af299ad99e6